{"text_format":"1","workbook":"xlsx","n_sheets":1,"sheets":["Планировщик бюджета"],"not_rendered":{"charts":1,"images":0,"macros":0,"external_links":0,"defined_names":1,"comments":0,"pivot_tables":0},"unopened":[],"bounds":{"document_bytes":16777216,"sheet_cells":100000,"rows_first":2000,"rows_last":500,"rows_between":2000,"halvings":0,"cell_chars":16384,"cell_head_chars":4096},"cells_cut":0,"cells_raw":0,"read":"whole","date_system":"1900"}

{"sheet":"Планировщик бюджета","index":0,"n_rows":21,"n_cols":6,"rows_kept":21,"cut":false,"hidden":false,"merged":[]}
[]
[]
[null,"Бюджет по категориям"]
[null,"Категории","Запланированный бюджет","Бюджет в деталях","Доступно / (более)"]
[null,"Транспорт",750,{"$f":"SUMIF(Таблица2[Категория],Таблица1[[#This Row],[Категории]],Таблица2[Сумма])","v":720},{"$f":"IFERROR(Таблица1[[#This Row],[Запланированный бюджет]]-Таблица1[[#This Row],[Бюджет в деталях]],\"\")","v":30}]
[null,"Жилье",250,{"$f":"SUMIF(Таблица2[Категория],Таблица1[[#This Row],[Категории]],Таблица2[Сумма])","v":300},{"$f":"IFERROR(Таблица1[[#This Row],[Запланированный бюджет]]-Таблица1[[#This Row],[Бюджет в деталях]],\"\")","v":-50}]
[null,"Еда",100,{"$f":"SUMIF(Таблица2[Категория],Таблица1[[#This Row],[Категории]],Таблица2[Сумма])","v":80},{"$f":"IFERROR(Таблица1[[#This Row],[Запланированный бюджет]]-Таблица1[[#This Row],[Бюджет в деталях]],\"\")","v":20}]
[null,"Мероприятия",500,{"$f":"SUMIF(Таблица2[Категория],Таблица1[[#This Row],[Категории]],Таблица2[Сумма])","v":500},{"$f":"IFERROR(Таблица1[[#This Row],[Запланированный бюджет]]-Таблица1[[#This Row],[Бюджет в деталях]],\"\")","v":0}]
[null,"Сувениры",50,{"$f":"SUMIF(Таблица2[Категория],Таблица1[[#This Row],[Категории]],Таблица2[Сумма])","v":0},{"$f":"IFERROR(Таблица1[[#This Row],[Запланированный бюджет]]-Таблица1[[#This Row],[Бюджет в деталях]],\"\")","v":50}]
[null,"Прочее",50,{"$f":"SUMIF(Таблица2[Категория],Таблица1[[#This Row],[Категории]],Таблица2[Сумма])","v":0},{"$f":"IFERROR(Таблица1[[#This Row],[Запланированный бюджет]]-Таблица1[[#This Row],[Бюджет в деталях]],\"\")","v":50}]
[null,"Резерв на непредвиденные расходы",200,{"$f":"SUMIF(Таблица2[Категория],Таблица1[[#This Row],[Категории]],Таблица2[Сумма])","v":0},{"$f":"IFERROR(Таблица1[[#This Row],[Запланированный бюджет]]-Таблица1[[#This Row],[Бюджет в деталях]],\"\")","v":200}]
[null,"Итоговый бюджет",{"$f":"SUBTOTAL(109,Таблица1[Запланированный бюджет])","v":1900},{"$f":"SUBTOTAL(109,Таблица1[Бюджет в деталях])","v":1600},{"$f":"SUBTOTAL(109,Таблица1[Доступно / (более)])","v":300}]
[]
[null,"Подробные сведения о расходах"]
[null,"Описание","Категория","Количество","Стоимость","Сумма"]
[null,"Авиабилеты","Транспорт",2,300,{"$f":"IFERROR(Таблица2[[#This Row],[Количество]]*Таблица2[[#This Row],[Стоимость]],\"\")","v":600}]
[null,"Автобус и такси, 2 дня","Транспорт",4,30,{"$f":"IFERROR(Таблица2[[#This Row],[Количество]]*Таблица2[[#This Row],[Стоимость]],\"\")","v":120}]
[null,"Гостиница, 2 ночи","Жилье",2,150,{"$f":"IFERROR(Таблица2[[#This Row],[Количество]]*Таблица2[[#This Row],[Стоимость]],\"\")","v":300}]
[null,"Питание, 2 дня","Еда",2,40,{"$f":"IFERROR(Таблица2[[#This Row],[Количество]]*Таблица2[[#This Row],[Стоимость]],\"\")","v":80}]
[null,"1 день, билеты на концерт","Мероприятия",2,250,{"$f":"IFERROR(Таблица2[[#This Row],[Количество]]*Таблица2[[#This Row],[Стоимость]],\"\")","v":500}]
[null,"Введите прочие статьи расходов",null,null,null,{"$f":"IFERROR(Таблица2[[#This Row],[Количество]]*Таблица2[[#This Row],[Стоимость]],\"\")","v":0}]